bitfinex/quotes_SOLUSD_20251223
["timestamp","ask_amount","ask_price","bid_price","bid_amount"]
[1766498854651,2.98036454,123.62,123.58,0.68]
[1766498854956,3.69036454,123.62,123.58,15.44]
[1766498855636,0.71,123.64,123.59,0.68]
[1766498855844,14.1280375,123.64,123.6,0.68]
[1766498856831,0.71,123.64,123.6,2.98036454]
[1766498857037,0.71,123.64,123.61,0.66]
[1766498857824,3.68036454,123.64,123.59,0.66]
[1766498858031,3.68036454,123.64,123.59,3.64036454]
[1766498858333,3.68036454,123.64,123.6,0.66]
[1766498858661,3.68036454,123.64,123.6,8.75016406]
[1766498859339,0.7,123.66,123.62,0.66]
[1766498859535,2.98036454,123.65,123.62,0.66]
[1766498859743,3.68036454,123.66,123.62,0.66]
[1766498859947,3.68036454,123.66,123.62,8.74870419]
[1766498860141,10.43767296,123.67,123.63,0.66]
[1766498860142,0.7,123.67,123.63,0.66]
[1766498860341,3.68036454,123.67,123.63,0.66]
[1766498861238,2.98036454,123.66,123.62,8.08870419]
[1766498861569,3.68036454,123.65,123.62,8.08870419]
[1766498861752,3.68036454,123.65,123.62,8.74870419]
[1766498861753,2.98036454,123.65,123.62,8.74870419]
[1766498862348,0.7,123.66,123.62,0.66]
[1766498862349,2.98036454,123.64,123.62,0.66]
[1766498862556,0.7,123.61,123.51,0.66]
[1766498862728,2.98036454,123.54,123.52,0.66]
[1766498862925,2.98036454,123.55,123.52,0.66]
[1766498863148,2.98036454,123.55,123.52,8.75584739]
[1766498863557,2.98036454,123.54,123.52,8.75584739]
[1766498863861,2.98036454,123.57,123.54,0.66]
[1766498864032,11.13767296,123.59,123.54,0.66]
[1766498864351,7.75794406,123.58,123.54,0.66]
[1766498864727,0.7,123.59,123.54,8.09446492]
[1766498864949,7.75794406,123.58,123.55,0.66]
[1766498865366,7.75794406,123.59,123.55,0.66]
[1766498867169,7.75794406,123.6,123.56,0.66]
[1766498867463,0.7,123.62,123.57,7.75794406]
[1766498867666,7.75794406,123.61,123.58,0.66]
[1766498867834,7.75794406,123.61,123.56,7.75794406]
[1766498868039,8.45794406,123.61,123.57,0.66]
[1766498869088,7.75794406,123.59,123.55,23.51324275]
[1766498869240,7.75794406,123.59,123.56,0.66]
[1766498869663,7.75794406,123.61,123.57,0.66]
[1766498870167,8.45794406,123.62,123.58,0.66]
[1766498871641,7.75794406,123.62,123.59,0.66]
[1766498871843,18.89561702,123.64,123.59,0.66]
[1766498872037,8.45794406,123.64,123.6,0.66]
[1766498872870,0.7,123.66,123.61,7.75794406]
[1766498873066,7.75794406,123.66,123.62,0.66]
[1766498873451,0.7,123.67,123.62,8.74920343]
[1766498873686,7.75794406,123.66,123.63,0.66]
[1766498874053,0.7,123.67,123.63,0.66]
[1766498874354,4.76763567,123.66,123.63,0.66]
[1766498874659,5.46763567,123.67,123.63,0.66]
[1766498875684,0.7,123.69,123.64,0.66]
[1766498875857,4.76763567,123.68,123.64,0.66]
[1766498876365,4.76763567,123.67,123.64,0.66]
[1766498876596,4.76763567,123.68,123.64,0.66]
[1766498877177,8.78488708,123.69,123.64,0.66]
[1766498877178,4.76763567,123.67,123.64,0.66]
[1766498877764,4.76763567,123.67,123.64,8.74799535]
[1766498878583,4.76763567,123.67,123.64,0.66]
[1766498878885,4.76763567,123.69,123.65,0.66]
[1766498879761,4.26763567,123.69,123.65,0.66]
[1766498879963,5.46763567,123.69,123.65,0.66]
[1766498880461,5.46763567,123.69,123.65,8.74728763]
[1766498880462,0.7,123.69,123.65,8.74728763]
[1766498880678,5.46763567,123.69,123.65,8.74728763]
[1766498880862,8.78368318,123.71,123.66,0.66]
[1766498881192,4.76763567,123.69,123.66,0.66]
[1766498882198,0.7,123.7,123.64,39.74669666]
[1766498882492,4.76763567,123.68,123.65,0.66]
[1766498882998,0.7,123.69,123.65,8.74729905]
[1766498883188,5.46763567,123.69,123.65,8.74729905]
[1766498883378,5.46763567,123.69,123.66,0.66]
[1766498884797,4.76763567,123.68,123.66,0.66]
[1766498886269,0.7,123.66,123.63,18.5263219]
[1766498886602,4.76763567,123.66,123.64,8.74797899]
[1766498886765,4.76763567,123.67,123.64,0.66]
[1766498886962,4.76763567,123.66,123.63,19.21603621]
[1766498887163,4.76763567,123.66,123.63,8.77836325]
[1766498887895,5.47763567,123.64,123.62,10.43767296]
[1766498888211,5.47763567,123.64,123.61,0.69]
[1766498888399,5.47763567,123.64,123.61,19.2172469]
[1766498888587,5.47763567,123.64,123.61,10.43767296]
[1766498888783,5.47763567,123.64,123.61,19.21727488]
[1766498889923,4.76763567,123.65,123.61,19.21727488]
[1766498890116,5.47763567,123.66,123.62,0.69]
[1766498890514,0.71,123.66,123.62,0.69]
[1766498890691,5.47763567,123.66,123.62,0.69]
[1766498891001,4.76763567,123.65,123.62,0.69]
[1766498892017,4.76763567,123.65,123.62,8.77926883]
[1766498894117,1.90761756,123.64,123.61,19.21734007]
[1766498896425,2.61761756,123.64,123.61,8.08966711]
[1766498896619,2.61761756,123.63,123.6,33.28806734]
[1766498896910,2.61761756,123.63,123.6,33.97806734]
[1766498897110,2.61761756,123.63,123.61,8.08992507]
[1766498897337,2.61761756,123.63,123.6,33.97796967]
[1766498897633,0.71,123.63,123.6,33.97796967]
[1766498897805,2.61761756,123.63,123.6,33.97796967]
[1766498898006,5.48017305,123.63,123.6,33.97796967]
[1766498898912,5.48017305,123.61,123.6,14.76]
[1766498899117,5.48017305,123.61,123.58,8.78160945]
[1766498899308,4.77017305,123.6,123.58,8.78160945]
[1766498899626,4.77017305,123.6,123.58,8.09160945]
[1766498900503,4.77017305,123.6,123.57,23.54228219]
[1766498900702,0.71,123.61,123.57,23.54228219]
[1766498900904,4.77017305,123.6,123.57,23.54228219]
[1766498901530,4.77017305,123.6,123.58,8.09190454]
[1766498902903,5.48017305,123.6,123.57,23.54227621]
[1766498903643,5.48017305,123.59,123.57,14.76]
[1766498903944,5.48017305,123.59,123.56,19.22067856]
[1766498903945,0.71,123.62,123.55,4.77017305]
[1766498904115,10.43767296,123.62,123.58,0.69]
[1766498904324,5.48017305,123.61,123.58,0.69]
[1766498904726,6.1281,123.65,123.58,0.69]
[1766498904727,0.71,123.63,123.58,0.69]
[1766498904900,4.77017305,123.62,123.58,23.54127832]
[1766498905105,5.48017305,123.62,123.58,23.54127832]
[1766498905850,4.77017305,123.61,123.58,23.54127832]
[1766498909132,11.14767296,123.64,123.59,0.69]
[1766498909433,5.48017305,123.63,123.59,0.69]
[1766498909811,4.77017305,123.64,123.61,0.69]
[1766498910011,0.71,123.65,123.61,0.69]
[1766498910213,5.48017305,123.64,123.61,0.69]
[1766498910446,5.48017305,123.65,123.61,0.69]
[1766498910619,0.71,123.65,123.61,0.69]
[1766498910826,5.48017305,123.65,123.61,0.69]
[1766498911353,5.48017305,123.65,123.61,8.77950326]
[1766498911852,5.48017305,123.66,123.62,0.69]
[1766498912068,5.48017305,123.66,123.62,15.45]
[1766498912239,0.71,123.68,123.63,0.69]
[1766498912425,4.77017305,123.67,123.63,0.69]
[1766498912620,5.48017305,123.67,123.63,0.69]
[1766498913354,5.48017305,123.67,123.63,8.77817913]
[1766498916028,5.49017305,123.67,123.63,8.77817913]
[1766498916856,4.77017305,123.66,123.63,0.69]
[1766498917059,4.77017305,123.66,123.63,0.68]
[1766498918260,5.44017305,123.67,123.63,8.76848408]
[1766498918473,5.44017305,123.67,123.64,0.68]
[1766498920072,1.90682538,123.67,123.63,8.08848408]
[1766498920275,0.67,123.68,123.63,8.76848408]
[1766498920493,2.57682538,123.67,123.63,8.76848408]
[1766498924178,0.67,123.68,123.64,2.58682538]
[1766498924381,2.57682538,123.68,123.64,0.68]
[1766498924576,0.67,123.68,123.64,2.58682538]
[1766498924884,2.57682538,123.68,123.64,0.68]
[1766498925181,2.57682538,123.68,123.64,8.76758432]
[1766498926580,0.67,123.68,123.64,8.76758432]
[1766498926784,2.57682538,123.68,123.64,8.76758432]
[1766498928084,0.67,123.68,123.64,8.76758432]
[1766498928261,1.90682538,123.69,123.66,0.68]
[1766498928587,0.67,123.69,123.66,0.68]
[1766498929167,2.57682538,123.69,123.66,0.68]
[1766498930776,2.57682538,123.69,123.66,8.76633783]
[1766498931292,2.57682538,123.69,123.66,8.08633783]
[1766498931589,2.57682538,123.69,123.66,8.76633783]
[1766498933681,1.90682538,123.68,123.65,14.76]
[1766498933887,0.67,123.67,123.64,8.767624]
[1766498934089,2.57682538,123.67,123.64,8.767624]
[1766498934986,0.67,123.67,123.64,8.767624]
[1766498935879,2.57682538,123.68,123.64,8.767624]
[1766498936073,0.67,123.68,123.65,0.68]
[1766498936270,0.67,123.69,123.65,3.65887762]
[1766498936586,0.67,123.69,123.66,14.76]
[1766498936793,0.67,123.69,123.66,15.44]
[1766498937697,0.67,123.69,123.66,23.5265044]
[1766498938896,18.52071307,123.72,123.64,8.08771847]
[1766498938897,2.97887762,123.68,123.64,8.08771847]
[1766498939197,28.29245282,123.71,123.61,40.4487336]
[1766498939198,0.67,123.64,123.61,0.68]
[1766498939372,2.97887762,123.65,123.61,0.68]
[1766498939572,3.64887762,123.66,123.62,0.68]
[1766498939974,3.64887762,123.66,123.63,14.76]
[1766498941976,2.97887762,123.66,123.63,14.76]
[1766498942182,3.64887762,123.65,123.63,14.76]
[1766498942391,3.64887762,123.65,123.62,8.08908864]
[1766498943001,3.64887762,123.65,123.62,8.76908864]
[1766498943204,3.64887762,123.65,123.62,0.68]
[1766498943580,3.64887762,123.64,123.61,22.84974947]
[1766498944524,0.67,123.62,123.61,14.76]
[1766498944682,3.64887762,123.62,123.59,14.76]
[1766498945010,0.67,123.61,123.59,14.76]
[1766498945183,3.64887762,123.61,123.59,14.76]
[1766498945579,3.64887762,123.61,123.57,8.77246003]
[1766498945778,28.30839966,123.64,123.57,23.53246003]
[1766498945779,3.64887762,123.6,123.57,23.53246003]
[1766498946284,2.97887762,123.62,123.58,0.68]
[1766498946480,3.64887762,123.62,123.58,0.68]
[1766498946899,2.97887762,123.65,123.57,22.85246003]
[1766498946900,3.67887762,123.61,123.57,22.85246003]
[1766498947080,0.7,123.6,123.57,23.54246003]
[1766498949184,0.7,123.6,123.57,22.85246003]
[1766498949385,3.67887762,123.6,123.57,22.85246003]
[1766498949584,3.67887762,123.58,123.54,8.78394224]
[1766498949798,2.97887762,123.57,123.54,8.78394224]
[1766498950180,3.67887762,123.58,123.55,8.78388613]
[1766498950589,3.67887762,123.58,123.55,0.69]
[1766498950787,3.67887762,123.58,123.54,8.78424887]
[1766498951010,3.67887762,123.58,123.55,0.69]
[1766498951591,2.97887762,123.57,123.54,8.09424887]
[1766498951793,2.97887762,123.57,123.54,8.78424887]
[1766498952280,2.97887762,123.56,123.54,0.69]
[1766498952486,2.97887762,123.56,123.53,23.74500601]
[1766498952887,3.67887762,123.56,123.53,23.74500601]
[1766498953312,3.67887762,123.56,123.53,15.65]
[1766498953895,10.43767296,123.61,123.55,0.69]
[1766498954203,3.67887762,123.59,123.55,15.45]
[1766498954605,2.97887762,123.6,123.56,0.69]
[1766498954900,3.67887762,123.6,123.56,0.69]
[1766498955106,2.97887762,123.6,123.55,22.85345889]
[1766498955415,0.7,123.58,123.55,23.54345889]
[1766498955881,8.09000665,123.61,123.55,23.54345889]
[1766498956083,3.67887762,123.59,123.56,0.69]
[1766498956284,3.67887762,123.59,123.55,25.83233651]
[1766498956285,3.67887762,123.59,123.55,23.54345889]
[1766498956487,2.97887762,123.56,123.53,0.89]
[1766498956699,2.97887762,123.56,123.53,15.65]
[1766498956907,2.97887762,123.56,123.53,23.74484977]
[1766498957192,3.67887762,123.57,123.54,0.69]
[1766498957387,3.67887762,123.57,123.54,8.78446253]
[1766498957694,2.97887762,123.58,123.55,0.69]
[1766498958091,3.67887762,123.58,123.55,0.69]
[1766498959311,8.09015006,123.61,123.55,8.0936964]
[1766498959617,3.67887762,123.6,123.56,15.45]
[1766498959916,2.97887762,123.59,123.56,15.45]
[1766498960287,0.7,123.6,123.56,15.45]
[1766498960484,3.67887762,123.59,123.56,15.45]
[1766498961512,3.67887762,123.59,123.56,14.76]
[1766498961721,18.52770824,123.61,123.54,23.21451056]
[1766498961722,3.67887762,123.57,123.54,23.54433668]
[1766498962412,0.7,123.57,123.54,23.54433668]
[1766498962818,3.67887762,123.59,123.55,0.69]
[1766498963232,0.7,123.58,123.55,0.69]
[1766498964105,0.7,123.6,123.57,0.69]
[1766498964322,3.67887762,123.6,123.57,0.69]
[1766498964504,3.67887762,123.6,123.57,8.78256296]
[1766498966510,8.08931654,123.62,123.58,17.73887762]
[1766498966511,0.7,123.62,123.58,17.73887762]
[1766498966707,3.67887762,123.61,123.58,14.76]
[1766498967307,3.67887762,123.61,123.58,15.45]
[1766498967937,14.11655058,123.63,123.59,0.69]
[1766498968239,0.7,123.62,123.59,0.69]
[1766498968619,0.7,123.61,123.58,22.85145043]
[1766498968817,3.67887762,123.61,123.58,22.85145043]
[1766498969315,3.67887762,123.61,123.58,23.54145043]
[1766498971641,2.97887762,123.61,123.58,14.76]
[1766498971939,3.67887762,123.6,123.58,14.76]
[1766498972116,3.67887762,123.6,123.57,8.0924601]
[1766498974255,0.7,123.6,123.57,8.0924601]
[1766498974535,3.63887762,123.62,123.58,0.71]
[1766498974740,2.97887762,123.62,123.58,0.71]
[1766498974929,0.66,123.61,123.58,0.71]
[1766498978348,3.63887762,123.61,123.58,0.71]
[1766498978836,0.7,123.58,123.54,8.79422899]
[1766498979047,3.67887762,123.57,123.54,8.79422899]
[1766498979242,0.7,123.6,123.55,0.7]
[1766498979420,0.7,123.6,123.57,0.7]
[1766498979737,2.97887762,123.61,123.57,0.7]
[1766498979927,2.97887762,123.62,123.57,0.7]
[1766498980124,0.7,123.61,123.57,0.7]
[1766498980829,3.67887762,123.61,123.57,8.79216682]
[1766498985645,3.67887762,123.61,123.57,8.09216682]
[1766498985947,0.7,123.61,123.58,0.7]
[1766498986749,3.67887762,123.61,123.58,0.7]
[1766498989044,0.7,123.6,123.57,8.09216682]
[1766498989266,0.7,123.6,123.57,8.79216682]
[1766498990757,4.22667176,123.68,123.59,2.97887762]
[1766498990928,0.7,123.65,123.63,2.97887762]
[1766498991135,0.7,123.66,123.62,0.7]
[1766498991452,2.97887762,123.63,123.6,8.09034637]
[1766498991641,13.41655058,123.65,123.6,14.76]
[1766498991840,3.67887762,123.63,123.6,22.85052454]
[1766498993334,3.67887762,123.63,123.6,14.76]
[1766498994366,0.7,123.62,123.6,14.76]
[1766498994657,3.67887762,123.61,123.58,14.76]
[1766498994858,2.97887762,123.61,123.58,14.76]
[1766498995057,0.7,123.59,123.56,22.85293291]
[1766498995356,3.67887762,123.59,123.56,22.85293291]
[1766498995660,3.67887762,123.59,123.56,23.55293291]
[1766498996049,3.67887762,123.6,123.57,8.09246256]
[1766498996253,3.67887762,123.6,123.57,8.79246256]
[1766498996634,0.7,123.6,123.57,8.79246256]
[1766498997058,0.7,123.6,123.57,0.7]
[1766498998046,1.90875044,123.61,123.58,0.7]
[1766498998253,2.60875044,123.61,123.58,0.7]
[1766498998865,2.60875044,123.6,123.57,8.09235625]
[1766498999052,0.7,123.59,123.56,23.5529833]
[1766498999249,1.90875044,123.6,123.56,22.8529833]
[1766498999566,1.90875044,123.6,123.57,0.7]
[1766498999767,2.60875044,123.6,123.57,0.7]
[1766498999971,8.08881916,123.63,123.57,0.7]
[1766499000166,2.60875044,123.62,123.58,0.7]
[1766499000359,2.60875044,123.65,123.61,0.7]
[1766499000948,1.90875044,123.65,123.61,0.7]
[1766499001165,2.60875044,123.64,123.6,0.7]
[1766499001467,0.7,123.63,123.6,0.7]
[1766499001867,0.7,123.62,123.59,22.85113075]
[1766499002248,2.60875044,123.62,123.59,23.55113075]
[1766499002559,0.7,123.63,123.59,25.45988119]
[1766499003680,2.60875044,123.63,123.59,23.55113075]
[1766499004674,0.7,123.63,123.59,25.45988119]
[1766499005676,13.0464234,123.66,123.62,0.7]
[1766499005848,0.7,123.65,123.61,9.99848333]
[1766499006172,2.60875044,123.65,123.61,8.78973289]
[1766499006373,1.90875044,123.65,123.61,8.78973289]
[1766499006557,0.7,123.64,123.61,0.7]
[1766499007860,2.61875044,123.65,123.61,0.7]
[1766499008174,2.61875044,123.65,123.61,8.78993256]
[1766499008976,0.71,123.64,123.61,0.7]
[1766499009750,2.61875044,123.64,123.61,0.7]
[1766499010076,2.61875044,123.64,123.61,8.78995384]
[1766499010367,0.71,123.64,123.61,8.78995384]
[1766499012076,2.61875044,123.66,123.62,0.68]
[1766499012376,0.71,123.66,123.63,0.68]
[1766499012552,0.71,123.66,123.62,16.66875044]
[1766499012751,0.71,123.66,123.62,15.44]
[1766499012975,2.61875044,123.66,123.62,15.44]
[1766499014577,0.71,123.66,123.62,23.52909203]
[1766499014776,2.61875044,123.66,123.62,23.52909203]
[1766499014983,0.71,123.66,123.62,25.43784247]
[1766499015369,0.71,123.64,123.6,0.68]
[1766499015575,0.71,123.64,123.61,22.84993169]
[1766499015757,2.61875044,123.69,123.64,0.68]
[1766499016084,0.71,123.69,123.66,0.68]
[1766499016280,0.71,123.69,123.65,15.44]
[1766499016666,0.71,123.69,123.65,23.52687901]
[1766499017070,1.90875044,123.69,123.65,15.44]
[1766499017298,2.61875044,123.67,123.65,14.76]
[1766499017668,2.61875044,123.67,123.64,8.08767682]
[1766499017868,2.61875044,123.67,123.64,8.76767682]
[1766499018195,0.71,123.67,123.64,8.76767682]
[1766499018691,0.71,123.66,123.63,22.84849872]
[1766499018874,0.71,123.66,123.63,23.52849872]
[1766499020070,0.71,123.67,123.63,25.43724916]
[1766499020384,0.71,123.67,123.63,23.52849872]
[1766499021089,2.61875044,123.67,123.63,23.52849872]
[1766499021791,2.61875044,123.67,123.64,0.68]
[1766499022201,0.71,123.66,123.63,22.84849872]
[1766499022496,0.71,123.66,123.63,23.52849872]
[1766499023089,2.61875044,123.67,123.64,8.08798191]
[1766499023393,2.61875044,123.67,123.64,0.68]
[1766499026390,2.61875044,123.67,123.64,8.76778433]
[1766499026391,0.71,123.67,123.64,8.76778433]
[1766499026591,2.61875044,123.67,123.64,8.76778433]
[1766499026991,0.71,123.69,123.65,0.68]
[1766499027198,10.43767296,123.71,123.65,1.90875044]
[1766499027491,35.08133469,123.76,123.68,0.68]
[1766499027697,0.71,123.71,123.68,0.68]
[1766499028974,2.61875044,123.7,123.66,0.68]
[1766499030093,2.61875044,123.7,123.66,8.08649346]
[1766499030394,2.61875044,123.7,123.67,0.68]
[1766499031796,0.71,123.7,123.67,8.76593078]
[1766499033294,0.66,123.72,123.68,2.55875044]
[1766499033500,0.66,123.72,123.69,0.65]
[1766499034196,0.66,123.69,123.66,8.73661535]
[1766499034498,0.66,123.72,123.67,1.90875044]
[1766499034673,0.66,123.72,123.68,0.65]
[1766499035088,1.90875044,123.71,123.68,14.76]
[1766499035285,2.56875044,123.7,123.66,23.49661535]
[1766499035695,2.56875044,123.69,123.66,23.49661535]
[1766499036280,2.56875044,123.69,123.66,14.76]
[1766499037507,0.68,123.68,123.66,14.76]
[1766499038201,1.90875044,123.68,123.64,22.84770153]
[1766499038396,2.58875044,123.67,123.64,23.53770153]
[1766499038797,0.68,123.67,123.64,23.53770153]
[1766499039297,2.58875044,123.67,123.64,15.45]
[1766499040286,1.90875044,123.67,123.64,14.76]
[1766499040488,8.08478621,123.69,123.55,40.46683393]
[1766499040489,0.68,123.64,123.55,40.46683393]
[1766499040795,2.58875044,123.62,123.58,0.69]
[1766499040993,2.58875044,123.62,123.59,14.76]
[1766499041192,1.90875044,123.63,123.6,0.69]
[1766499041392,2.58875044,123.64,123.61,0.69]
[1766499043308,1.90875044,123.63,123.61,0.69]
[1766499043689,2.58875044,123.62,123.59,15.45]
[1766499043895,1.90875044,123.61,123.59,15.45]
[1766499045307,1.90875044,123.62,123.59,23.54083898]
[1766499045499,2.58875044,123.63,123.6,0.69]
[1766499046015,2.58875044,123.64,123.61,0.69]
[1766499046591,1.90875044,123.63,123.61,0.69]
[1766499048819,2.58875044,123.62,123.56,30.66966104]
[1766499048995,1.90875044,123.6,123.57,23.54220518]
[1766499049611,1.90875044,123.6,123.58,0.69]
[1766499049819,2.58875044,123.61,123.58,0.69]
[1766499050118,0.68,123.63,123.59,0.69]
[1766499050303,5.45189449,123.62,123.59,0.69]
[1766499052416,0.68,123.62,123.59,0.69]
[1766499052613,5.45189449,123.62,123.59,0.69]
[1766499053095,5.45189449,123.63,123.6,0.69]
[1766499054013,5.45189449,123.63,123.6,8.78053439]
[1766499054014,4.77189449,123.63,123.6,8.78053439]
[1766499054525,5.45189449,123.64,123.6,0.69]
[1766499055030,5.45189449,123.64,123.56,10.43767296]
[1766499055031,0.68,123.6,123.56,8.78297201]
[1766499055334,5.45189449,123.6,123.56,8.78297201]
[1766499055496,5.45189449,123.62,123.58,0.69]
[1766499055696,5.45189449,123.62,123.58,15.45]
[1766499055892,0.68,123.64,123.59,0.69]
[1766499056109,4.77189449,123.63,123.59,0.69]
[1766499056315,5.45189449,123.63,123.59,0.69]
[1766499057423,0.68,123.63,123.59,8.78122344]
[1766499057626,4.77189449,123.62,123.58,14.76]
[1766499057813,20.21835826,123.65,123.57,0.69]
[1766499057814,5.45189449,123.6,123.57,0.69]
[1766499057998,7.75623391,123.59,123.56,15.45]
[1766499058336,8.43623391,123.59,123.56,15.45]
[1766499058501,7.75623391,123.58,123.56,14.76]
[1766499059124,8.43623391,123.59,123.56,14.76]
[1766499059425,8.43623391,123.59,123.56,15.45]
[1766499060314,0.68,123.59,123.56,15.45]
[1766499060521,8.43623391,123.6,123.56,15.45]
[1766499061322,0.68,123.62,123.57,0.69]
[1766499061498,7.75623391,123.61,123.57,0.69]
[1766499061699,0.68,123.62,123.57,7.75623391]
[1766499061895,11.11767296,123.64,123.59,7.75623391]
[1766499062102,18.87390687,123.64,123.6,0.69]
[1766499062406,8.43623391,123.64,123.6,0.69]
[1766499063116,8.08695183,123.66,123.61,0.69]
[1766499063425,0.68,123.66,123.62,23.20623391]
[1766499063597,22.86565317,123.68,123.63,0.69]
[1766499063598,11.11767296,123.68,123.63,0.69]
[1766499063797,11.11767296,123.68,123.63,8.44623391]
[1766499063798,7.75623391,123.67,123.63,8.44623391]
[1766499064195,8.43623391,123.67,123.63,8.77856989]
[1766499066617,0.68,123.67,123.63,16.5348038]
[1766499066824,0.68,123.67,123.64,0.67]
[1766499069131,8.44623391,123.68,123.64,0.67]
[1766499069314,0.69,123.68,123.64,0.67]
[1766499069515,11.12767296,123.7,123.65,7.75623391]
[1766499069836,0.69,123.69,123.66,0.67]
[1766499072018,3.66791579,123.69,123.66,0.67]
[1766499072216,0.69,123.68,123.65,14.76]
[1766499072421,0.69,123.68,123.65,15.43]
[1766499072833,3.66791579,123.69,123.65,15.43]
[1766499073534,0.69,123.69,123.65,15.43]
[1766499073726,3.66791579,123.69,123.65,15.43]
[1766499074335,8.77482171,123.69,123.65,15.43]
[1766499074532,3.66791579,123.68,123.65,15.43]
[1766499074736,3.66791579,123.68,123.65,14.76]
[1766499075414,3.66791579,123.68,123.65,15.43]
[1766499076116,3.66791579,123.68,123.63,22.84850053]
[1766499076117,0.69,123.66,123.63,22.84850053]
[1766499076618,0.69,123.66,123.63,23.51850053]
[1766499076819,2.97791579,123.67,123.64,0.67]
[1766499077019,3.66791579,123.67,123.64,0.67]
[1766499077851,0.69,123.68,123.64,3.64791579]
[1766499079142,3.66791579,123.69,123.65,0.67]
[1766499079516,0.69,123.69,123.65,3.64791579]
[1766499079945,3.66791579,123.69,123.65,0.67]
[1766499080443,9.10601579,123.75,123.65,3.64791579]
[1766499080444,6.8181,123.75,123.65,3.64791579]
[1766499080634,0.1,123.76,123.73,0.67]
[1766499080836,0.79,123.76,123.73,0.67]
[1766499081028,3.76791579,123.76,123.72,0.67]
[1766499081341,2.97791579,123.75,123.72,0.67]
[1766499081541,3.66791579,123.73,123.7,10.43767296]
[1766499081752,3.66791579,123.72,123.69,15.43]
[1766499082052,8.42984218,123.72,123.69,15.43]
[1766499082339,8.42984218,123.72,123.69,14.76]
[1766499082732,0.69,123.72,123.69,22.84457174]
[1766499083046,0.69,123.72,123.69,23.51457174]
[1766499083351,8.42984218,123.72,123.69,15.43]
[1766499083644,8.42984218,123.71,123.69,14.76]
[1766499084522,7.73984218,123.71,123.69,14.76]
[1766499084739,8.42984218,123.72,123.69,14.76]
[1766499086729,20.89688307,123.79,123.71,7.73984218]
[1766499087047,0.2,123.8,123.78,7.73984218]
[1766499087258,0.2,123.8,123.78,8.40984218]
[1766499087748,0.1,123.81,123.79,7.73984218]
[1766499088533,4.66723191,123.82,123.8,7.73984218]
[1766499089154,4.66723191,123.82,123.81,7.73984218]
[1766499089340,4.66723191,123.82,123.8,14.76]
[1766499089653,4.66723191,123.82,123.79,22.49984218]
[1766499089848,4.66723191,123.82,123.79,30.5780156]
[1766499090157,4.66723191,123.82,123.79,23.16984218]
[1766499090450,5.35723191,123.82,123.79,14.76]
[1766499090623,5.35723191,123.82,123.79,30.57801351]
[1766499090956,4.66723191,123.82,123.8,8.40984218]
[1766499091446,4.66723191,123.82,123.78,8.74860128]
[1766499091625,13.09707409,123.82,123.78,15.43]
[1766499091821,20.48333508,123.82,123.78,14.76]
[1766499092046,20.48333508,123.82,123.76,14.76]
[1766499092047,0.69,123.79,123.76,14.76]
[1766499092846,0.69,123.79,123.76,22.84000706]
[1766499093054,0.69,123.79,123.76,23.54000706]
[1766499093238,0.7,123.8,123.76,23.54000706]
[1766499093551,0.7,123.8,123.76,31.27984924]
[1766499093940,0.7,123.8,123.76,15.46]
[1766499094256,0.7,123.8,123.76,31.27986155]
[1766499094756,13.10707409,123.82,123.77,8.43984218]
[1766499094947,13.10707409,123.82,123.77,16.5189823]
[1766499095148,0.7,123.81,123.77,16.5189823]
[1766499098652,0.7,123.81,123.77,8.77914012]
[1766499098937,0.7,123.81,123.77,16.5189823]
[1766499099166,0.7,123.81,123.77,8.07914012]
[1766499099457,8.43984218,123.81,123.77,8.07914012]
[1766499100038,0.7,123.81,123.77,16.5189823]
[1766499101444,8.43984218,123.81,123.77,0.7]
[1766499101646,8.43984218,123.81,123.76,30.57976236]
[1766499101647,0.66,123.8,123.76,30.57976236]